fUSD/lending_fUSD_20260228
["ID","MTS","AMOUNT","RATE_DAILY","PERIOD"]
[406888317,1772267438695,-1285.52,0.0001258,2]
[406888318,1772267438705,-242.90752003,0.00012607,2]
[406888320,1772267438714,-1285.52,0.00012909,2]
[406888321,1772267438724,-1285.52,0.00013238,2]
[406888323,1772267438733,-1052.62235347,0.0001325,2]
[406888325,1772267438743,-250.0,0.00013512,2]
[406888327,1772267438752,-1285.52,0.00013567,2]
[406888328,1772267438762,-164.579,0.00013629,2]
[406888330,1772267438772,-823.0,0.00013692,2]
[406888332,1772267438781,-500.0,0.00013698,2]
[406888333,1772267438792,-500.0,0.00013698,2]
[406888335,1772267438800,-500.0,0.00013698,2]
[406888337,1772267438810,-500.0,0.00013698,2]
[406888338,1772267438819,-500.0,0.00013698,2]
[406888340,1772267438828,-500.0,0.00013698,2]
[406888342,1772267438837,-500.0,0.00013698,2]
[406888343,1772267438847,-500.0,0.00013698,2]
[406888345,1772267438856,-500.0,0.00013698,2]
[406888347,1772267438865,-500.0,0.00013698,2]
[406888348,1772267438875,-500.0,0.00013698,2]
[406888350,1772267438885,-560.48,0.00013698,2]
[406888352,1772267438894,-500.0,0.00013698,2]
[406888353,1772267438904,-500.0,0.00013698,2]
[406888355,1772267438913,-500.0,0.00013698,2]
[406888357,1772267438923,-500.0,0.00013698,2]
[406888359,1772267438933,-500.0,0.00013698,2]
[406888360,1772267438942,-500.0,0.00013698,2]
[406888362,1772267438951,-500.0,0.00013698,2]
[406888364,1772267438961,-500.0,0.00013698,2]
[406888365,1772267438971,-226.44,0.00013698,2]
[406888367,1772267438981,-500.0,0.00013698,2]
[406888369,1772267438990,-500.0,0.00013698,2]
[406888370,1772267439000,-7613.06,0.0001371,2]
[406888372,1772267439009,-17805.1146421,0.00013729,2]
[406888374,1772267439021,-150.0,0.00013895,2]
[406888375,1772267439029,-1285.52,0.00013897,2]
[406888377,1772267439038,-310.22607572,0.00013908,2]
[406888379,1772267439047,-500.0,0.00013908,2]
[406888380,1772267439057,-500.0,0.00013908,2]
[406888382,1772267439067,-226.44,0.00013972,2]
[406888384,1772267439076,-1600.0,0.00013975,2]
[406888385,1772267439085,-30407.98115146,0.00014035,2]
[406888387,1772267439095,-511.0,0.0001411,2]
[406888389,1772267439104,-226.44,0.00014246,2]
[406888391,1772267439113,-220.38,0.00014256,3]
[406888392,1772267439124,-332.89534025,0.00014261,2]
[406888394,1772267439134,-186.17,0.00014352,2]
[406888396,1772267439144,-7613.06,0.00014395,2]
[406888397,1772267439153,-1000.0,0.00014456,2]
[406888399,1772267439163,-1000.0,0.00014456,2]
[406888401,1772267439173,-226.44,0.0001452,2]
[406888402,1772267439183,-226.47421015,0.00014794,2]
[406888404,1772267439194,-500.0,0.00015003,2]
[406888406,1772267439204,-500.0,0.00015003,2]
[406888408,1772267439213,-500.0,0.00015003,2]
[406888409,1772267439222,-219.67514616,0.00015003,2]
[406888411,1772267439231,-1500.0,0.00015004,2]
[406888413,1772267439240,-504.49415487,0.00015004,2]
[406888414,1772267439250,-2319.46959562,0.00015052,2]
[406888416,1772267439260,-19315.17,0.00015054,2]
[406888418,1772267439269,-1152.0,0.00015056,2]
[406888419,1772267439279,-7613.06,0.00015081,2]
[406888421,1772267439289,-2258.6,0.00015415,2]
[406888423,1772267439298,-1600.0,0.00015528,2]
[406888425,1772267439307,-2000.0,0.00015552,2]
[406888426,1772267439317,-2319.46959562,0.00015764,2]
[406888428,1772267439327,-7613.06,0.00015766,2]
[406888430,1772267439335,-151.0,0.00015981,2]
[406888431,1772267439345,-500.0,0.00015984,2]
[406888433,1772267439355,-500.0,0.00015984,2]
[406888435,1772267439365,-596.4968816,0.00015984,2]
[406888436,1772267439375,-500.0,0.00015984,2]
[406888438,1772267439385,-290.04213309,0.00015984,2]
[406888440,1772267439396,-500.0,0.00015984,2]
[406888442,1772267439406,-500.0,0.00015984,2]
[406888443,1772267439416,-500.0,0.00015984,2]
[406888445,1772267439426,-500.0,0.00015984,2]
[406888447,1772267439435,-648.3262986,0.00015984,2]
[406888448,1772267439444,-500.0,0.00015984,2]
[406888450,1772267439453,-500.0,0.00015984,2]
[406888452,1772267439463,-500.0,0.00015984,2]
[406888453,1772267439473,-500.0,0.00015984,2]
[406888455,1772267439483,-500.0,0.00015984,2]
[406888458,1772267439492,-500.0,0.00015984,2]
[406888459,1772267439501,-500.0,0.00015984,2]
[406888461,1772267439511,-500.0,0.00015984,2]
[406888463,1772267439520,-500.0,0.00015984,2]
[406888465,1772267439530,-500.0,0.00015984,2]
[406888466,1772267439539,-170.4067714,0.00015984,2]
[406888468,1772267439549,-595.16967246,0.00015984,2]
[406888470,1772267439559,-529.72247796,0.00015984,2]
[406888471,1772267439569,-516.43,0.00015984,2]
[406888473,1772267439578,-516.43,0.00015984,2]
[406888475,1772267439587,-516.43,0.00015984,2]
[406888476,1772267439596,-516.43,0.00015984,2]
[406888478,1772267439606,-516.43,0.00015984,2]
[406888480,1772267439616,-516.43,0.00015984,2]
[406888481,1772267439624,-516.43,0.00015984,2]
[406888483,1772267439634,-516.43,0.00015984,2]
[406888485,1772267439643,-516.43,0.00015984,2]
[406888486,1772267439652,-16303.16,0.00016084,2]
[406888488,1772267439662,-2479.36214283,0.00016099,2]
[406888490,1772267439672,-7955.92,0.00016116,2]
[406888492,1772267439682,-1015.21,0.000163,3]
[406888493,1772267439691,-174.04581251,0.00016362,2]
[406888495,1772267439701,-160.0,0.00016362,2]
[406888497,1772267439711,-7613.06,0.00016452,2]
[406888498,1772267439721,-2319.46959562,0.00016476,2]
[406888500,1772267439730,-1613.0,0.00016557,2]
[406888502,1772267439740,-500.0,0.00016719,2]
[406888504,1772267439749,-500.0,0.00016719,2]
[406888506,1772267439759,-500.0,0.00016719,2]
[406888508,1772267439768,-500.0,0.00016754,2]
[406888509,1772267439778,-500.0,0.00016754,2]
[406888511,1772267439787,-500.0,0.00016754,2]
[406888513,1772267439797,-500.0,0.00016754,2]
[406888515,1772267439806,-668.65185757,0.00016754,2]
[406888516,1772267439816,-500.0,0.00016754,2]
[406888518,1772267439826,-500.0,0.00016754,2]
[406888520,1772267439835,-500.0,0.00016754,2]
[406888522,1772267439846,-500.0,0.00016754,2]
[406888523,1772267439855,-500.0,0.00016754,2]
[406888525,1772267439864,-500.0,0.00016754,2]
[406888527,1772267439874,-500.0,0.00016754,2]
[406888528,1772267439883,-500.0,0.00016754,2]
[406888530,1772267439893,-269.917619,0.00016754,2]
[406888532,1772267439902,-500.0,0.00016754,2]
[406888533,1772267439911,-291.64589034,0.00016754,2]
[406888535,1772267439920,-174.61919141,0.00016754,2]
[406888537,1772267439934,-500.0,0.00016754,2]
[406888539,1772267439943,-500.0,0.00016754,2]
[406888540,1772267439953,-151.0,0.00016754,2]
[406888542,1772267439962,-151.0,0.00016754,2]
[406888544,1772267439972,-267.46074303,0.00016754,2]
[406888546,1772267439981,-693.3919763,0.00016809,2]
[406888548,1772267439990,-151.0,0.00016809,2]
[406888550,1772267440000,-719.04747942,0.00016864,2]
[406888551,1772267440009,-151.0,0.00016864,2]
[406888553,1772267440019,-745.65223616,0.00016919,2]
[406888556,1772267440030,-151.0,0.00016919,2]
[406888557,1772267440049,-773.2413689,0.00016974,2]
[406888560,1772267440059,-151.0,0.00016974,2]
[406888562,1772267440068,-200.0,0.00016983,2]
[406888564,1772267440078,-500.0,0.0001701,2]
[406888566,1772267440087,-500.0,0.0001701,2]
[406888568,1772267440096,-500.0,0.0001701,2]
[406888569,1772267440106,-801.85129955,0.00017029,2]
[406888570,1772267440115,-151.0,0.00017029,2]
[406888571,1772267440128,-1864.889,0.00017041,2]
[406888572,1772267440137,-156.201,0.00017041,2]
[406888573,1772267440145,-1600.0,0.00017081,2]
[406888574,1772267440154,-831.51979763,0.00017084,2]
[406888575,1772267440165,-151.0,0.00017084,2]
[406888576,1772267440176,-862.28603014,0.00017139,2]
[406888577,1772267440185,-151.0,0.00017139,2]
[406888578,1772267440195,-2319.46959562,0.00017188,2]
[406888579,1772267440204,-894.19061326,0.00017194,2]
[406888580,1772267440213,-151.0,0.00017194,2]
[406888581,1772267440222,-2000.0,0.000172,2]
[406888582,1772267440231,-927.27566595,0.00017249,2]
[406888583,1772267440241,-151.0,0.00017249,2]
[406888584,1772267440250,-279.9045709,0.00017302,2]
[406888585,1772267440259,-181.08010149,0.00017302,2]
[406888586,1772267440267,-156.74932774,0.00017302,2]
[406888587,1772267440276,-277.35679052,0.00017302,2]
[406888588,1772267440285,-961.58486559,0.00017304,2]
[406888589,1772267440294,-151.0,0.00017304,2]
[406888590,1772267440303,-997.16350561,0.00017359,2]
[406888591,1772267440312,-151.0,0.00017359,2]
[406888592,1772267440321,-765.0,0.00017599,2]
[406888593,1772267440330,-1166.18413295,0.000176,2]
[406888594,1772267440339,-1058.60465221,0.0001764,2]
[406888595,1772267440348,-1039.16091701,0.0001764,2]
[406888596,1772267440357,-1094.07947775,0.0001764,2]
[406888597,1772267440366,-1070.00590621,0.0001764,2]
[406888598,1772267440375,-1013.45050537,0.0001764,2]
[406888599,1772267440384,-1117.26559288,0.0001764,2]
[406888600,1772267440393,-1088.28964479,0.0001764,2]
[406888601,1772267440403,-1109.47202306,0.0001764,2]
[406888602,1772267440412,-1119.94297907,0.0001764,2]
[406888604,1772267440421,-1072.05167754,0.0001764,2]
[406888605,1772267440432,-1039.10208908,0.0001764,2]
[406888606,1772267440441,-1079.33041877,0.0001764,2]
[406888607,1772267440451,-1084.32257954,0.0001764,2]
[406888609,1772267440460,-1004.64514442,0.0001764,2]
[406888611,1772267440469,-1972.90969614,0.0001764,2]
[406888613,1772267440479,-500.0,0.00017699,2]
[406888615,1772267440489,-150.0,0.00017699,2]
[406888617,1772267440498,-150.0,0.00017699,2]
[406888619,1772267440508,-500.0,0.00017699,2]
[406888621,1772267440517,-2008.0,0.000177,2]
[406888623,1772267440526,-251.0,0.00017753,2]
[406888625,1772267440535,-500.0,0.00017754,2]
[406888627,1772267440545,-500.0,0.00017754,2]
[406888629,1772267440554,-765.0,0.00017769,2]
[406888631,1772267440564,-500.0,0.00017808,2]
[406888633,1772267440573,-800.0,0.00017808,2]
[406888635,1772267440583,-500.0,0.00017809,2]
[406888637,1772267440592,-500.0,0.00017809,2]
[406888639,1772267440601,-500.0,0.00017829,2]
[406888641,1772267440611,-500.0,0.00017829,2]
[406888643,1772267440620,-500.0,0.00017829,2]
[406888645,1772267440630,-500.0,0.00017829,2]
[406888647,1772267440639,-500.0,0.00017829,2]
[406888649,1772267440648,-500.0,0.00017829,2]
[406888651,1772267440658,-500.0,0.00017829,2]
[406888653,1772267440667,-500.0,0.00017829,2]
[406888655,1772267440676,-500.0,0.00017829,2]
[406888657,1772267440685,-500.0,0.00017829,2]
[406888659,1772267440696,-500.0,0.00017829,2]
[406888661,1772267440705,-500.0,0.00017829,2]
[406888663,1772267440714,-500.0,0.00017829,2]
[406888665,1772267440723,-500.0,0.00017829,2]
[406888667,1772267440732,-500.0,0.00017829,2]
[406888669,1772267440743,-500.0,0.00017829,2]
[406888671,1772267440752,-500.0,0.00017829,2]
[406888673,1772267440761,-500.0,0.00017829,2]
[406888675,1772267440771,-500.0,0.00017829,2]
[406888677,1772267440781,-500.0,0.00017829,2]
[406888679,1772267440791,-500.0,0.00017829,2]
[406888681,1772267440801,-500.0,0.00017829,2]
[406888683,1772267440810,-500.0,0.00017829,2]
[406888685,1772267440820,-500.0,0.00017829,2]
[406888687,1772267440829,-500.0,0.00017829,2]
[406888689,1772267440840,-500.0,0.00017829,2]
[406888691,1772267440849,-500.0,0.00017829,2]
[406888693,1772267440859,-500.0,0.00017829,2]
[406888695,1772267440868,-500.0,0.00017829,2]
[406888697,1772267440879,-500.0,0.00017829,2]
[406888699,1772267440888,-500.0,0.00017829,2]
[406888701,1772267440898,-500.0,0.00017829,2]
[406888703,1772267440908,-500.0,0.00017829,2]
[406888705,1772267440918,-500.0,0.00017829,2]
[406888707,1772267440928,-487.98702566,0.00017829,2]
[406888709,1772267440937,-500.0,0.00017829,2]
[406888711,1772267440946,-500.0,0.00017829,2]
[406888713,1772267440956,-500.0,0.00017829,2]
[406888715,1772267440965,-500.0,0.00017829,2]
[406888717,1772267440974,-500.0,0.00017829,2]
[406888719,1772267440984,-500.0,0.00017829,2]
[406888721,1772267440993,-500.0,0.00017829,2]
[406888723,1772267441002,-500.0,0.00017829,2]
[406888725,1772267441012,-500.0,0.00017829,2]
[406888727,1772267441023,-500.0,0.00017829,2]
[406888729,1772267441032,-500.0,0.00017829,2]
[406888732,1772267441041,-500.0,0.00017829,2]
[406888733,1772267441051,-500.0,0.00017829,2]
[406888736,1772267441060,-500.0,0.00017829,2]
[406888738,1772267441070,-500.0,0.00017829,2]
[406888739,1772267441079,-500.0,0.00017829,2]
[406888742,1772267441089,-500.0,0.00017829,2]
[406888744,1772267441099,-500.0,0.00017829,2]
[406888746,1772267441108,-500.0,0.00017829,2]
[406888748,1772267441119,-500.0,0.00017829,2]
[406888750,1772267441130,-500.0,0.00017829,2]
[406888752,1772267441139,-500.0,0.00017829,2]
[406888754,1772267441148,-500.0,0.00017829,2]
[406888756,1772267441159,-500.0,0.00017829,2]
[406888758,1772267441168,-500.0,0.00017829,2]
[406888760,1772267441177,-500.0,0.00017829,2]
[406888762,1772267441187,-600.0,0.00017829,2]
[406888763,1772267441197,-500.0,0.00017829,2]
[406888765,1772267441206,-500.0,0.00017829,2]
[406888768,1772267441216,-500.0,0.00017829,2]
[406888770,1772267441225,-521.32955434,0.00017829,2]
[406888772,1772267441234,-259.96169612,0.00017829,2]
[406888774,1772267441244,-500.0,0.00017829,2]
[406888776,1772267441253,-500.0,0.00017829,2]
[406888778,1772267441262,-500.0,0.00017829,2]
[406888779,1772267441271,-500.0,0.00017829,2]
[406888781,1772267441280,-500.0,0.00017829,2]
[406888784,1772267441291,-500.0,0.00017829,2]
[406888786,1772267441300,-500.0,0.00017829,2]
[406888788,1772267441310,-500.0,0.00017829,2]
[406888790,1772267441320,-200.0,0.00017829,2]
[406888792,1772267441330,-500.0,0.00017829,2]
[406888794,1772267441339,-500.0,0.00017829,2]
[406888796,1772267441349,-500.0,0.00017829,2]
[406888798,1772267441359,-500.0,0.00017829,2]
[406888800,1772267441368,-500.0,0.00017829,2]
[406888802,1772267441377,-500.0,0.00017829,2]
[406888803,1772267441386,-208.03686315,0.00017829,2]
[406888806,1772267441397,-500.0,0.00017829,2]
[406888807,1772267441406,-500.0,0.00017829,2]
[406888809,1772267441416,-500.0,0.00017829,2]
[406888811,1772267441426,-500.0,0.00017829,2]
[406888814,1772267441436,-500.0,0.00017829,2]
[406888816,1772267441445,-500.0,0.00017829,2]
[406888817,1772267441455,-590.38354289,0.00017829,2]
[406888819,1772267441464,-500.0,0.00017829,2]
[406888821,1772267441474,-500.0,0.00017829,2]
[406888836,1772267441605,-316.7905715,0.00017829,2]
[406888838,1772267441615,-516.43,0.00017829,2]
[406888840,1772267441625,-140156.87642438,0.0001783,2]
[406888843,1772267441634,-290.26104003,0.0001785,2]
[406888844,1772267441644,-187.78006525,0.0001785,2]
[406888847,1772267441654,-287.61899177,0.0001785,2]
[406888849,1772267441664,-500.0,0.00017863,2]
[406888851,1772267441673,-500.0,0.00017863,2]
[406888853,1772267441683,-500.0,0.00017863,2]
[406888855,1772267441693,-288.1281186,0.00017868,2]
[406888857,1772267441703,-500.0,0.00017882,2]
[406888859,1772267441712,-500.0,0.00017882,2]
[406888861,1772267441721,-500.0,0.00017882,2]
[406888863,1772267441731,-151.0,0.00017893,2]
[406888865,1772267441741,-500.0,0.00017895,2]
[406888867,1772267441750,-420.2,0.00017895,2]
[406888869,1772267441760,-516.43,0.00017895,2]
[406888871,1772267441769,-516.43,0.00017895,2]
[406888873,1772267441778,-516.43,0.00017895,2]
[406888875,1772267441787,-516.43,0.00017895,2]
[406888877,1772267441796,-516.43,0.00017895,2]
[406888879,1772267441805,-516.43,0.00017895,2]
[406888881,1772267441814,-1274940.86886646,0.00017896,2]
[406888895,1772267441938,-833.66172791,0.00017896,2]
[406888904,1772267442018,-325.42295744,0.00017896,2]
[406888907,1772267442032,-256.08361954,0.00017896,2]
[406888909,1772267442043,-1701.5010428,0.00017896,2]
[406888911,1772267442054,-13390.316375,0.00017896,2]
[406888914,1772267442065,-262.632924,0.00017896,2]
[406888919,1772267442109,-208289.51248685,0.00017896,2]
[406888921,1772267442118,-516.43,0.00017899,2]
[406888923,1772267442131,-158.40433856,0.000179,3]
[406888925,1772267442141,-10189.6131,0.000179,2]
[406888927,1772267442150,-32888.5933,0.000179,2]
[406888929,1772267442160,-8280.2759,0.000179,2]
[406888931,1772267442171,-1000.0,0.000179,2]
[406888933,1772267442180,-2319.46959562,0.000179,2]
[406888935,1772267442190,-500.0,0.00017918,2]
[406888937,1772267442200,-500.0,0.00017918,2]
[406888939,1772267442210,-500.0,0.00017918,2]
[406888941,1772267442219,-248.05139013,0.00017972,2]
[406888943,1772267442228,-434.72824868,0.00017973,2]
[406888945,1772267442238,-500.0,0.00017973,2]
[406888947,1772267442248,-500.0,0.00017982,2]
[406888949,1772267442257,-227.79036117,0.00017982,2]
[406888951,1772267442267,-765.0,0.00017995,2]
[406888953,1772267442276,-500.0,0.00017996,2]
[406888955,1772267442285,-500.0,0.00017996,2]
[406888957,1772267442294,-500.0,0.00017996,2]
[406888960,1772267442303,-500.0,0.00017996,2]
[406888962,1772267442312,-500.0,0.00017996,2]
[406888964,1772267442321,-500.0,0.00017996,2]
[406888966,1772267442335,-151.0,0.00017997,2]
[406888968,1772267442345,-500.0,0.00017999,2]
[406888969,1772267442355,-186.56,0.00017999,2]
[406888970,1772267442364,-500.0,0.00017999,2]
[406888973,1772267442373,-500.0,0.00017999,2]
[406888975,1772267442383,-220.78,0.00017999,2]
[406888976,1772267442392,-189.10065192,0.00017999,2]
[406888978,1772267442402,-478.88,0.00017999,2]
[406888980,1772267442412,-516.43,0.00017999,2]
[406888983,1772267442421,-516.43,0.00017999,2]
[406888986,1772267442431,-516.43,0.00017999,2]
[406888988,1772267442441,-516.43,0.00017999,2]
[406888991,1772267442450,-516.43,0.00017999,2]
[406888994,1772267442460,-516.43,0.00017999,2]
[406888997,1772267442470,-516.56595352,0.00017999,2]
[406889000,1772267442481,-225.51659048,0.00017999,2]
[406889002,1772267442490,-328402.70513972,0.00018,2]
[406889004,1772267442500,-4016.07387733,0.00018,2]
[406889006,1772267442509,-2136079.81015751,0.00018,2]
[406889008,1772267442519,-1196.18434235,0.00018,2]
[406889010,1772267442528,-100021.0591939,0.00018,2]
[406889012,1772267442537,-376.66,0.00018,7]
[406889014,1772267442546,-200.0,0.00018,2]
[406889016,1772267442555,-257.33277415,0.00018,2]
[406889018,1772267442565,-4044.5573029,0.00018,2]
[406889020,1772267442574,-200.0,0.00018,2]
[406889022,1772267442583,-4984.5902611,0.00018,2]
[406889024,1772267442592,-3875.3241988,0.00018,2]
[406889026,1772267442601,-100767.8662509,0.00018,2]
[406889028,1772267442611,-2390.6297159,0.00018,2]
[406889030,1772267442620,-55390.8900867,0.00018,2]
[406889032,1772267442630,-10354.0660756,0.00018,2]
[406889034,1772267442639,-151.0,0.00018,2]
[406889036,1772267442650,-500.0,0.00018028,2]
[406889038,1772267442659,-655.0,0.00018038,2]
[406889040,1772267442668,-500.0,0.00018083,2]
[406889042,1772267442678,-765.0,0.00018094,2]
[406889044,1772267442688,-655.0,0.000181,2]
[406889046,1772267442697,-336.0,0.00018108,2]
[406889048,1772267442706,-336.0,0.00018136,2]
[406889050,1772267442717,-500.0,0.00018137,2]
[406889052,1772267442726,-469.0,0.00018167,2]
[406889054,1772267442735,-765.0,0.0001817,2]
[406889055,1772267442745,-200.0,0.0001818,2]
[406889056,1772267442754,-200.0,0.0001818,2]
[406889057,1772267442764,-469.0,0.00018183,2]
[406889058,1772267442773,-283.0,0.00018188,2]
[406889059,1772267442783,-2196.0,0.00018207,2]
[406889060,1772267442792,-765.0,0.0001821,2]
[406889061,1772267442801,-1000.0,0.00018266,2]
[406889062,1772267442810,-469.0,0.00018352,2]
[406889063,1772267442820,-200.0,0.00018362,2]
[406889064,1772267442829,-200.0,0.00018362,2]
[406889065,1772267442839,-2932.2129754,0.00018394,2]
[406889066,1772267442849,-655.0,0.00018395,2]
[406889067,1772267442858,-303.71842786,0.00018398,2]
[406889068,1772267442867,-194.72792766,0.00018398,2]
[406889069,1772267442876,-427.15888461,0.00018398,2]
[406889070,1772267442886,-200.0,0.00018545,2]
[406889071,1772267442895,-6693.86939356,0.00018633,3]
[406889072,1772267442904,-1600.0,0.00018634,2]
[406889073,1772267442913,-200.0,0.00018731,2]
[406889074,1772267442920,-2000.0,0.000188,2]
[406889075,1772267442929,-800.92398376,0.00018904,2]
[406889076,1772267442936,-8588.93780572,0.00018917,3]
[406889077,1772267442944,-201.93286099,0.00018946,2]
[406889078,1772267442952,-170.19413525,0.00019,2]
[406889079,1772267442960,-350.0,0.00019,2]
[406889080,1772267442968,-469.0,0.00019015,2]
[406889081,1772267442975,-209.40437684,0.00019494,2]
[406889082,1772267442983,-256.8870596,0.00019726,2]
[406889083,1772267442991,-1000.0,0.00019927,2]
[406889084,1772267442998,-2038.51067232,0.0001995,15]
[406889085,1772267443006,-564.69909794,0.00019999,2]
[406889086,1772267443016,-280.15496564,0.00019999,2]
[406889087,1772267443024,-296.60721331,0.00019999,2]
[406889088,1772267443032,-500.0,0.00019999,2]
[406889089,1772267443040,-500.0,0.00019999,2]
[406889090,1772267443049,-500.0,0.00019999,2]
[406889091,1772267443059,-500.0,0.00019999,2]
[406889092,1772267443067,-500.0,0.00019999,2]
[406889093,1772267443076,-500.0,0.00019999,2]
[406889094,1772267443086,-500.0,0.00019999,2]
[406889095,1772267443095,-500.0,0.00019999,2]
[406889096,1772267443105,-500.0,0.00019999,2]
[406889097,1772267443114,-500.0,0.00019999,2]
[406889098,1772267443127,-500.0,0.00019999,2]
[406889099,1772267443137,-280.45453362,0.00019999,2]
[406889100,1772267443146,-500.0,0.00019999,2]
[406889101,1772267443155,-500.0,0.00019999,2]
[406889102,1772267443164,-500.0,0.00019999,2]
[406889103,1772267443175,-500.0,0.00019999,2]
[406889104,1772267443185,-500.0,0.00019999,2]
[406889105,1772267443195,-500.0,0.00019999,2]
[406889106,1772267443204,-513.98299512,0.00019999,2]
[406889107,1772267443214,-513.98299512,0.00019999,2]
[406889108,1772267443223,-513.98299512,0.00019999,2]
[406889109,1772267443233,-513.98299512,0.00019999,2]
[406889111,1772267443242,-513.98299512,0.00019999,2]
[406889113,1772267443251,-513.98299512,0.00019999,2]
[406889116,1772267443261,-513.98299512,0.00019999,2]
[406889117,1772267443270,-513.98299512,0.00019999,2]
[406889119,1772267443280,-1092.21386463,0.00019999,2]
[406889122,1772267443289,-1092.21386463,0.00019999,2]
[406889124,1772267443299,-1092.21386463,0.00019999,2]
[406889125,1772267443308,-1092.21386463,0.00019999,2]
[406889127,1772267443317,-1092.21386463,0.00019999,2]
[406889129,1772267443327,-248.40257118,0.00019999,2]
[406889131,1772267443336,-336.76762378,0.0002003,2]
[406889132,1772267443345,-217.15233878,0.00020042,2]
[406889133,1772267443355,-4044.5573029,0.0002009,2]
[406889134,1772267443364,-4984.5902611,0.0002009,2]
[406889135,1772267443374,-2390.6297159,0.0002009,2]
[406889136,1772267443384,-10354.0660756,0.0002009,2]
[406889137,1772267443394,-1129.99,0.000201,7]
[406889138,1772267443404,-511.0,0.000201,7]
[406889139,1772267443414,-307.20133331,0.00020248,2]
[406889140,1772267443423,-816.9013297,0.000203,2]
[406889141,1772267443432,-22317.7149561,0.00020346,2]
[406889142,1772267443442,-864.7017091,0.00020346,2]
[406889143,1772267443451,-22484.3501343,0.00020346,2]
[406889144,1772267443461,-12359.3781758,0.00020346,2]
[406889145,1772267443471,-14282.1768016,0.00020356,2]
[406889146,1772267443480,-275.68517406,0.0002059,2]
[406889147,1772267443489,-197.77023818,0.00020756,2]
[406889149,1772267443499,-182.2753245,0.00020825,2]
[406889150,1772267443508,-4979.7553123,0.00020869,2]
[406889152,1772267443518,-192.9410308,0.00020869,2]
[406889154,1772267443527,-5016.9366463,0.00020869,2]
[406889156,1772267443537,-2757.7500317,0.00020869,2]
[406889158,1772267443547,-3186.784397,0.00020883,2]
[406889160,1772267443556,-258.07,0.00021414,2]
[406889162,1772267443565,-202.72942851,0.00021466,2]
[406889164,1772267443575,-1000.0,0.00021655,7]
[406889166,1772267443585,-5000.0,0.00021918,2]
[406889167,1772267443595,-160.84,0.00021918,30]
[406889169,1772267443605,-161.2200426,0.00021918,2]
[406889171,1772267443614,-4044.5573029,0.00022179,2]
[406889173,1772267443624,-4984.5902611,0.00022179,2]
[406889175,1772267443634,-2390.6297159,0.00022179,2]
[406889177,1772267443643,-10354.0660756,0.00022179,2]
[406889179,1772267443653,-4281.43,0.00022279,2]
[406889181,1772267443662,-1539.14,0.0002274,2]
[406889183,1772267443671,-160.0,0.00023,2]
[406889185,1772267443681,-8807.04580093,0.00023053,10]
[406889187,1772267443691,-11314.07842234,0.00023329,10]
[406889189,1772267443700,-174.04581251,0.000234,10]
[406889191,1772267443709,-150.973,0.00023519,2]
[406889193,1772267443719,-1211.0,0.00023519,2]
[406889195,1772267443728,-944.144,0.00023519,2]
[406889197,1772267443738,-5984.0,0.00023519,2]
[406889199,1772267443748,-2457.0,0.00023519,2]
[406889201,1772267443758,-3566.48,0.00023519,2]
[406889203,1772267443767,-4044.5573029,0.00024269,2]
[406889205,1772267443777,-4984.5902611,0.00024269,2]
[406889207,1772267443786,-2390.6297159,0.00024269,2]
[406889209,1772267443795,-10354.0660756,0.00024269,2]